bitfinex/quotes_ETHUSD_20250906
["timestamp","ask_amount","ask_price","bid_price","bid_amount"]
[1757176493510,7.06376158,4274.2,4274.1,2.33967384]
[1757176494276,4.79756158,4274.2,4274.1,2.33967384]
[1757176494478,0.20256158,4274.2,4274.1,2.33967384]
[1757176494844,4.79556158,4274.2,4274.1,2.33967384]
[1757176495043,1e-08,4274.8,4274.5,2.3394549]
[1757176495278,1e-08,4274.8,4274.7,7.52823288]
[1757176495447,1e-08,4274.8,4274.7,5.52823288]
[1757176495977,1e-08,4274.8,4274.7,5.82493288]
[1757176496372,1e-08,4274.8,4274.7,5.52823288]
[1757176500585,1e-08,4274.8,4274.7,5.82493288]
[1757176502198,1e-08,4274.8,4274.7,5.52823288]
[1757176502556,1e-08,4274.8,4274.7,5.82493288]
[1757176503076,2.26620001,4274.8,4274.7,5.52823288]
[1757176503278,2.67695274,4274.8,4274.7,2.33934545]
[1757176503478,3.12735274,4274.8,4274.7,2.33934545]
[1757176504196,2.67695274,4274.8,4274.7,2.33934545]
[1757176504592,0.72115274,4274.8,4274.7,2.33934545]
[1757176504794,2.67695274,4274.8,4274.7,2.33934545]
[1757176505007,3.12735274,4274.8,4274.7,2.33934545]
[1757176505355,2.67695274,4274.8,4274.7,2.33934545]
[1757176505759,0.41075274,4274.8,4274.7,2.33934545]
[1757176506466,0.72115274,4274.8,4274.7,2.33934545]
[1757176506788,2.67695274,4274.8,4274.7,2.33934545]
[1757176508062,4.592,4275.2,4274.7,2.33934545]
[1757176508063,0.3728926,4278.7,4274.8,2.33925434]
[1757176508266,0.025,4276.8,4275.1,2.33912657]
[1757176508466,3.144,4276.7,4275.2,5.0361]
[1757176508702,1.9558,4276.6,4276.5,2.33834423]
[1757176509020,2.2662,4276.6,4274.2,0.4681]
[1757176509169,0.792,4276.5,4275.9,2.33867687]
[1757176509502,0.792,4276.5,4275.9,8.893e-05]
[1757176509503,0.3104,4276.0,4275.9,8.893e-05]
[1757176509706,6.6764,4276.0,4275.5,2.33885319]
[1757176509923,2.1476,4275.9,4275.6,2.33884984]
[1757176510207,0.001,4274.8,4273.7,2.33989283]
[1757176510509,0.001,4274.8,4274.7,2.33930069]
[1757176510686,4.565,4274.7,4273.9,2.33978333]
[1757176511012,4.565,4274.7,4274.5,2.3394549]
[1757176511013,2.1476,4274.6,4274.5,2.3394549]
[1757176511244,2.7063,4274.6,4273.7,2.33989283]
[1757176511393,2.7063,4274.6,4274.5,2.3394549]
[1757176511593,2.7063,4274.6,4274.4,2.3394901]
[1757176511820,2.2781,4274.6,4274.2,2.33961532]
[1757176512022,2.2781,4274.6,4274.4,2.3394894]
[1757176512234,2.2781,4274.6,4273.8,0.025]
[1757176512401,2.2781,4274.6,4273.6,0.004]
[1757176512402,0.4282,4274.5,4273.6,0.004]
[1757176512601,0.4282,4274.5,4274.3,2.33956247]
[1757176512796,2.281,4274.4,4274.3,2.33956247]
[1757176513191,2.281,4274.4,4274.3,2.28466796]
[1757176513392,2.281,4274.4,4273.7,2.33989283]
[1757176513642,2.281,4274.4,4274.2,2.33961911]
[1757176513643,4.561,4274.3,4274.2,2.33961911]
[1757176513810,4.6944,4274.3,4274.2,2.33961911]
[1757176514138,6.842,4274.3,4274.2,2.33961911]
[1757176514820,6.842,4274.3,4274.1,2.33966982]
[1757176515022,2.1476,4274.2,4274.1,2.33966982]
[1757176515407,2.284,4274.2,4274.1,2.33966982]
[1757176516916,2.284,4274.2,4273.6,0.004]
[1757176517643,2.234,4274.2,4273.6,0.004]
[1757176517824,2.234,4274.2,4274.1,2.33967384]
[1757176518239,2.0976,4274.2,4273.6,2.78120209]
[1757176518537,4.561,4274.3,4274.1,2.62777384]
[1757176518755,4.561,4274.3,4274.2,2.33961911]
[1757176518956,0.001,4274.8,4274.2,2.62771911]
[1757176519157,4.552,4274.7,4274.5,2.33942959]
[1757176519360,0.001,4274.8,4274.7,2.33934545]
[1757176519566,4.552,4274.8,4274.7,0.2881]
[1757176519736,4.552,4274.8,4274.7,2.62744545]
[1757176519939,4.552,4274.8,4274.7,3.06474545]
[1757176520520,0.001,4274.8,4274.7,0.4373]
[1757176520873,0.001,4274.8,4274.7,0.7254]
[1757176521161,0.001,4274.8,4274.7,3.06474545]
[1757176524860,4.546,4275.3,4275.2,2.33907185]
[1757176525030,4.546,4275.3,4275.2,2.62717185]
[1757176525232,4.546,4275.3,4275.2,0.7254]
[1757176525761,4.546,4275.3,4275.2,2.33907185]
[1757176526062,7.4243,4275.3,4275.2,2.33907185]
[1757176526667,0.001,4275.3,4275.2,2.62717185]
[1757176526829,0.001,4275.3,4275.2,3.12380382]
[1757176527893,0.001,4275.3,4275.2,3.54730382]
[1757176528528,1e-08,4275.7,4275.6,2.33885302]
[1757176528943,1e-08,4275.7,4275.6,2.62695302]
[1757176529347,1e-08,4275.7,4275.6,3.05045302]
[1757176529956,1e-08,4275.7,4275.6,2.62695302]
[1757176530582,1e-08,4275.7,4275.6,7.16095302]
[1757176531866,1e-08,4275.7,4275.6,7.58445302]
[1757176532068,1e-08,4275.7,4275.6,7.76202013]
[1757176533990,1e-08,4275.7,4275.6,7.33852013]
[1757176534595,1e-08,4275.7,4275.6,2.80452013]
[1757176534796,0.4343,4277.2,4276.0,3.0]
[1757176534963,0.4343,4277.2,4275.6,9.12173099]
[1757176534964,2.1476,4277.1,4277.0,2.33808744]
[1757176535294,2.444,4277.1,4277.0,2.33808744]
[1757176535586,2.444,4277.1,4276.1,4.527]
[1757176535587,2.8783,4277.1,4275.6,4.97556711]
[1757176535800,0.2964,4277.1,4277.0,2.33808744]
[1757176536381,2.8783,4277.1,4277.0,2.33808744]
[1757176537192,2.8783,4277.1,4276.0,3.0]
[1757176537394,2.8783,4277.1,4277.0,2.33808744]
[1757176537395,0.2964,4277.1,4277.0,2.33808744]
[1757176537567,0.2964,4277.1,4276.9,2.33813227]
[1757176537773,0.2964,4277.1,4276.6,2.33826396]
[1757176537991,2.5819,4277.0,4276.8,2.33815368]
[1757176538192,0.7307,4276.9,4275.8,2.33871441]
[1757176538361,2.5819,4276.8,4276.7,2.33825145]
[1757176538558,2.8783,4276.8,4276.7,2.33825145]
[1757176540198,2.8783,4276.8,4276.5,2.33830834]
[1757176540363,0.4477,4276.7,4275.6,0.17756711]
[1757176540563,2.1134,4276.6,4276.5,2.33832461]
[1757176540785,2.8569,4276.6,4276.5,2.33832461]
[1757176540991,3.26219843,4276.6,4276.5,2.33831325]
[1757176541407,3.26219843,4276.6,4275.2,3.0]
[1757176541606,0.70109843,4276.6,4276.3,2.3384693]
[1757176541773,2.5611,4276.5,4276.3,2.3384693]
[1757176541968,0.7435,4276.4,4276.3,2.3384693]
[1757176542497,2.8569,4276.4,4276.3,2.3384693]
[1757176542703,7.3739,4276.4,4276.3,2.3384693]
[1757176543173,7.3739,4276.4,4274.7,0.70306925]
[1757176543373,0.792,4276.2,4274.7,0.17818244]
[1757176543603,4.3591,4276.1,4275.4,2.33893671]
[1757176543833,0.2958,4275.5,4275.0,2.33913574]
[1757176544038,6.6274,4275.4,4275.3,2.33901714]
[1757176544238,7.3709,4275.4,4275.3,2.33901714]
[1757176544440,7.3709,4275.4,4274.7,0.17816577]
[1757176544637,1.798,4275.3,4275.2,2.33904593]
[1757176544925,2.2457,4275.3,4275.2,2.33904593]
[1757176545215,4.6549,4275.3,4275.2,2.33904593]
[1757176546451,1.798,4275.3,4275.2,2.33904593]
[1757176546746,6.309,4275.3,4275.2,2.64264593]
[1757176546946,6.309,4275.3,4275.2,2.33904593]
[1757176547147,1.798,4275.3,4275.2,2.64264593]
[1757176547523,1.798,4275.3,4275.2,2.33904593]
[1757176550958,2.0938,4275.3,4275.2,2.33904593]
[1757176552267,0.001,4275.7,4275.6,2.33885302]
[1757176552731,0.001,4275.7,4275.6,7.61325302]
[1757176553566,0.001,4275.7,4275.6,12.11525302]
[1757176554775,0.001,4275.7,4275.6,12.52155145]
[1757176556970,0.001,4275.7,4275.6,10.54775145]
[1757176557130,0.001,4275.7,4275.6,5.64245302]
[1757176557768,0.001,4275.7,4275.6,7.75955337]
[1757176557974,0.001,4275.7,4275.6,8.18305337]
[1757176558539,2.33699685,4279.0,4275.6,8.18305337]
[1757176558540,2.1134,4277.9,4275.8,0.792]
[1757176558841,2.5611,4277.8,4277.7,2.33770484]
[1757176559052,2.8569,4277.8,4277.7,2.33770484]
[1757176562590,7.3479,4277.8,4277.7,2.33770484]
[1757176563165,4.3591,4278.2,4278.1,2.33748626]
[1757176563499,2.1384,4278.8,4278.1,0.3036]
[1757176563670,2.4092,4278.2,4278.1,2.33748626]
[1757176563858,2.8569,4278.2,4278.1,2.33748626]
[1757176564064,0.2958,4278.2,4278.1,2.33748626]
[1757176564394,2.5611,4278.6,4278.5,2.33726773]
[1757176564395,2.1134,4278.6,4278.5,2.33726773]
[1757176564563,7.3439,4278.6,4278.5,2.33726773]
[1757176567810,7.3449,4278.6,4278.5,2.33726773]
[1757176569069,0.001,4278.6,4278.5,2.64086773]
[1757176569709,2.8531,4278.6,4278.5,2.33726773]
[1757176570284,6.9908,4278.6,4278.5,2.33726773]
[1757176570623,7.4337,4278.6,4278.5,2.33726773]
[1757176570821,2.9547,4278.6,4278.5,2.33726773]
[1757176570973,4.48,4278.6,4278.5,2.33726773]
[1757176571334,0.001,4278.6,4278.5,2.63076773]
[1757176571619,4.479,4278.6,4278.5,2.63076773]
[1757176572166,0.001,4278.6,4278.5,2.63076773]
[1757176572366,4.478,4278.6,4278.5,2.63076773]
[1757176572567,4.477,4278.6,4278.5,2.63076773]
[1757176572968,0.001,4278.6,4278.5,2.63076773]
[1757176573518,0.001,4279.1,4278.5,2.63076773]
[1757176573718,0.64597768,4280.1,4278.5,2.63076773]
[1757176573719,0.64597768,4280.1,4279.1,2.33694001]
[1757176573927,0.64597768,4280.1,4279.7,2.33661237]
[1757176573928,1e-08,4279.8,4279.7,2.33661237]
[1757176574104,1e-08,4279.8,4279.7,7.10511237]
[1757176574271,1e-08,4280.8,4280.7,2.33606653]
[1757176574478,0.29600001,4280.8,4280.7,2.33606653]
[1757176574804,2.95390001,4280.8,4280.7,2.33606653]
[1757176575184,0.29600001,4280.8,4280.7,2.33606653]
[1757176575811,1e-08,4280.8,4280.7,2.33606653]
[1757176576018,1e-08,4280.8,4280.7,2.80477095]
[1757176576215,1.0154559,4283.4,4280.8,3.0]
[1757176576433,0.4429,4282.6,4282.3,2.3351937]
[1757176576632,1.0154559,4283.4,4281.7,4.471]
[1757176576633,0.7389,4282.4,4281.7,4.471]
[1757176576927,4.6969,4282.3,4281.0,2.33590282]
[1757176577103,0.792,4282.2,4280.2,0.70219048]
[1757176577303,0.296,4281.1,4281.0,2.33590282]
[1757176577737,4.47,4281.4,4281.2,2.33578459]
[1757176577895,0.7389,4281.3,4279.6,0.70227268]
[1757176578102,0.4429,4281.2,4280.5,2.33614803]
[1757176578297,0.792,4281.1,4279.4,2.44663044]
[1757176578502,2.6579,4281.0,4280.4,2.33621567]
[1757176578702,0.296,4280.5,4280.4,2.33621567]
[1757176579600,4.468,4280.7,4279.8,2.33654162]
[1757176579795,4.468,4280.7,4280.5,2.33612499]
[1757176580030,0.7389,4280.6,4279.5,5.33667319]
[1757176580232,2.9539,4280.6,4279.4,2.44663044]
[1757176580449,2.9539,4280.6,4280.0,2.33642721]
[1757176580646,2.9539,4280.6,4280.1,2.33638092]
[1757176580935,0.4429,4280.5,4280.2,2.33633781]
[1757176581141,4.466,4280.4,4280.3,2.33628483]
[1757176582637,5.2049,4280.4,4280.0,2.33639849]
[1757176582824,2.6579,4280.3,4280.0,2.33642247]
[1757176583137,2.6579,4280.3,4279.8,0.025]
[1757176583338,0.296,4279.9,4279.8,0.025]
[1757176583632,6.556,4279.9,4279.8,0.025]
[1757176583847,9.2139,4279.9,4279.8,0.025]
[1757176586414,12.2139,4279.9,4279.8,0.025]
[1757176586616,6.12855778,4279.8,4277.1,2.2723]
[1757176586848,0.792,4279.3,4277.7,2.33768138]
[1757176587151,0.792,4278.8,4277.6,0.004]
[1757176587355,0.67371388,4278.9,4277.6,0.004]
[1757176587356,1.797,4278.7,4277.6,2.34175643]
[1757176587525,0.296,4277.9,4277.6,2.34175643]
[1757176587730,6.553,4277.9,4277.7,2.33769567]
[1757176588037,6.65567771,4277.9,4277.7,2.33769567]
[1757176588238,2.19567771,4277.9,4277.6,0.004]
[1757176588555,9.31257771,4277.9,4277.6,0.004]
[1757176590055,1e-08,4277.9,4277.8,2.65615019]
[1757176590215,0.37771388,4278.9,4278.8,2.33710386]
[1757176590416,0.37771388,4278.9,4278.8,5.35800386]
[1757176590650,0.37771388,4278.9,4278.8,4.90290386]
[1757176591042,0.47683482,4278.9,4278.8,4.90290386]
[1757176591236,0.47683482,4278.9,4278.8,2.63060386]
[1757176591754,4.83471388,4278.9,4278.8,5.85478253]
[1757176593039,4.83471388,4278.9,4278.8,5.39968253]
[1757176594642,4.83171388,4278.9,4278.8,5.39968253]
[1757176595570,4.83171388,4278.9,4278.8,3.12738253]
[1757176595865,4.83171388,4278.9,4278.8,2.63060386]
[1757176596426,4.82971388,4278.9,4278.8,2.63060386]
[1757176596827,4.82971388,4278.9,4278.8,2.33710386]
[1757176597566,6.62671388,4278.9,4278.8,2.33710386]
[1757176598241,9.58061388,4278.9,4278.6,2.33718614]
[1757176598447,0.4429,4278.8,4278.2,2.33738338]
[1757176598752,0.296,4278.3,4278.2,2.33743163]
[1757176598953,0.296,4278.3,4277.8,0.025]
[1757176599162,4.45,4278.3,4278.2,2.33743163]
[1757176599357,5.1889,4278.3,4278.2,2.33743163]
[1757176599745,0.296,4278.3,4278.2,2.33743163]
[1757176599944,4.55007279,4278.3,4278.2,2.33743163]
[1757176600159,1e-08,4278.3,4278.2,5.2992256]
[1757176600360,1e-08,4278.3,4278.2,8.7624256]
[1757176602478,1e-08,4278.3,4278.2,13.2094256]
[1757176603777,0.09859574,4279.3,4279.2,2.33688539]
[1757176604149,0.09859574,4279.3,4279.2,2.64088539]
[1757176604392,0.39419574,4279.3,4279.2,2.33688539]
[1757176604587,0.86429574,4279.3,4279.2,2.33688539]
[1757176604978,2.98429574,4279.3,4279.2,2.33688539]
[1757176605616,2.98429574,4279.3,4277.8,0.025]
[1757176605771,1.797,4279.2,4277.8,0.025]
[1757176605963,1.797,4279.2,4278.9,2.33703285]
[1757176606154,0.2956,4279.0,4278.6,2.3371634]
[1757176606359,4.444,4278.9,4278.6,2.3371634]
[1757176606555,2.5901,4278.8,4278.7,2.33714325]
[1757176606760,2.8857,4278.8,4277.8,0.025]
[1757176607059,2.8857,4278.8,4277.9,2.33759554]
[1757176607358,4.443,4278.7,4278.6,2.3372131]
[1757176607562,7.3287,4278.7,4278.6,2.3372131]
[1757176607794,2.8857,4278.7,4278.6,2.3372131]
[1757176608160,7.3277,4278.7,4278.6,2.3372131]
[1757176608588,2.8857,4278.7,4278.6,2.3372131]
[1757176609086,5.2077,4278.7,4278.6,2.3372131]
[1757176610878,4.80838528,4279.5,4279.4,2.33677618]
[1757176611079,0.36838528,4279.5,4279.4,2.33677618]
[1757176611305,4.80838528,4279.5,4279.4,2.33677618]
[1757176612305,0.36838528,4279.5,4279.4,2.33677618]
[1757176612493,4.80838528,4279.5,4279.4,2.33677618]
[1757176613175,4.80738528,4279.5,4279.4,2.33677618]
[1757176613385,4.80638528,4279.5,4279.4,2.33677618]
[1757176614008,0.36838528,4279.5,4279.4,2.33677618]
[1757176614301,4.80638528,4279.5,4279.4,2.33677618]
[1757176616777,7.69208528,4279.5,4279.4,2.33677618]
[1757176618306,5.57208528,4279.5,4279.4,2.33677618]
[1757176618688,5.09698528,4279.5,4279.4,2.33677618]
[1757176619201,5.56708528,4279.5,4279.4,2.33677618]
[1757176620110,0.36838528,4279.5,4279.4,2.64077618]
[1757176620290,4.80138528,4279.5,4279.4,2.64077618]
[1757176620689,4.80138528,4279.5,4279.4,2.33677618]
[1757176621217,0.10004851,4279.7,4279.6,2.33666697]
[1757176621410,4.53204851,4279.7,4279.6,2.33666697]
[1757176621715,4.82764851,4279.7,4279.6,2.33666697]
[1757176622015,0.39564851,4279.7,4279.6,2.33666697]
[1757176622218,4.53004851,4279.7,4279.6,2.33666697]
[1757176622617,0.093555,4280.3,4279.8,2.33655778]
[1757176622828,0.093555,4280.3,4280.2,2.33633942]
[1757176623123,4.522555,4280.3,4280.2,2.33633942]
[1757176624224,0.093555,4280.3,4280.2,2.33633942]
[1757176624432,4.521555,4280.3,4280.2,2.33633942]
[1757176625326,0.001,4280.4,4280.3,2.33628483]
[1757176625623,3.761,4280.4,4280.3,2.33628483]
[1757176625825,4.427,4280.4,4280.3,2.64028483]
[1757176626127,0.4951,4280.8,4280.7,2.33606653]
[1757176626446,0.025,4280.8,4280.7,2.33606653]
[1757176626728,4.451,4280.8,4280.7,2.33606653]
[1757176626900,4.451,4280.8,4280.7,2.64006653]
[1757176626901,1e-08,4280.8,4280.7,2.64006653]
[1757176627104,1e-08,4280.8,4280.7,5.54701732]
[1757176627528,1e-08,4280.8,4280.7,6.01021732]
[1757176628693,1e-08,4280.8,4280.7,9.01021732]
[1757176630401,1e-08,4280.8,4280.7,8.54701732]
[1757176630708,0.00100001,4280.8,4280.7,8.54701732]
[1757176632241,0.00100001,4280.8,4280.7,6.35671732]
[1757176632404,0.00100001,4280.8,4280.7,8.39201732]
[1757176632606,0.00100001,4280.8,4280.7,6.35671732]
[1757176633166,0.00100001,4280.8,4280.7,6.05271732]
[1757176633313,2.96240001,4280.8,4280.7,2.33606653]
[1757176634010,0.00100001,4280.8,4280.7,2.33606653]
[1757176634443,0.31430001,4280.8,4280.7,2.33606653]
[1757176636348,0.00100001,4280.8,4280.7,2.33606653]
[1757176636652,0.31430001,4280.8,4280.7,2.33606653]
[1757176637208,0.00100001,4280.8,4280.7,2.33606653]
[1757176637457,0.00100001,4280.8,4280.7,5.13868732]
[1757176637657,0.00100001,4280.8,4280.7,3.10338732]
[1757176639542,0.00100001,4280.8,4280.7,5.13868732]
[1757176639743,0.00100001,4280.8,4280.7,5.61218732]
[1757176641169,0.00100001,4280.8,4280.7,8.61218732]
[1757176641955,0.00100001,4280.8,4280.7,9.74579752]
[1757176643382,0.00100001,4280.8,4280.7,9.40418732]
[1757176644752,0.00100001,4280.8,4280.7,8.61218732]
[1757176644947,0.00100001,4280.8,4280.7,10.51138732]
[1757176645379,0.00100001,4280.8,4280.7,5.80328732]
[1757176645577,1e-08,4281.2,4280.9,3.0]
[1757176645778,0.001,4281.3,4281.2,2.3357937]
[1757176646281,0.3143,4281.3,4281.2,2.3357937]
[1757176646691,2.5208,4281.3,4281.2,2.3357937]
[1757176647669,2.9624,4281.3,4281.2,2.3357937]
[1757176648066,2.9624,4281.3,4279.2,2.33688539]
[1757176648067,0.792,4281.2,4279.2,2.33688539]
[1757176648280,0.792,4281.2,4279.4,2.33677618]
[1757176648281,2.6481,4281.1,4279.4,2.33677618]
[1757176648496,0.4416,4281.0,4279.5,2.33672157]
[1757176648702,0.3133,4279.6,4279.5,2.33672157]
[1757176648907,2.9614,4279.6,4279.5,2.33672157]
[1757176652605,2.2065,4280.2,4279.5,3.11092157]
[1757176652766,1.796,4280.5,4280.4,2.33623025]
[1757176652971,4.7574,4280.5,4280.4,2.33623025]
[1757176654393,0.3133,4280.5,4280.4,2.33623025]
[1757176656088,2.9614,4280.5,4280.4,2.33623025]
[1757176656476,0.001,4280.8,4280.7,2.33606653]
[1757176656678,0.001,4280.8,4280.7,10.09803739]
[1757176656877,0.001,4280.8,4280.7,10.03216653]
[1757176657076,0.001,4280.8,4280.7,12.54156653]
[1757176657295,0.001,4280.8,4280.7,5.63616653]
[1757176657613,0.001,4280.8,4280.7,6.65972278]
[1757176657817,0.001,4280.8,4280.7,9.16912278]
[1757176659118,0.001,4280.8,4280.7,6.65972278]
[1757176659325,0.3143,4280.8,4280.7,2.33606653]
[1757176659529,2.5208,4280.8,4280.7,2.33606653]
[1757176660501,0.3143,4280.8,4280.7,2.33606653]
[1757176661079,0.001,4280.8,4280.7,12.11066653]
[1757176661339,1e-08,4281.6,4281.5,2.33563003]
[1757176662282,0.29840001,4281.6,4281.5,2.33563003]
[1757176663123,1e-08,4281.6,4281.5,2.62763003]
[1757176666021,1e-08,4281.6,4281.5,2.80517976]
[1757176667229,1e-08,4281.6,4281.5,4.20476839]
[1757176667525,1e-08,4281.6,4281.5,10.68136839]
[1757176670541,0.00100001,4281.6,4281.5,10.68136839]
[1757176671138,1e-08,4283.8,4281.6,0.792]
[1757176671343,1e-08,4283.8,4283.7,2.33443051]
[1757176671709,2.97340001,4283.8,4283.7,2.33443051]
[1757176672109,1.796,4285.0,4284.7,2.33388568]
[1757176672644,0.3234,4284.8,4284.7,2.33388568]
[1757176673135,7.7064,4284.8,4284.7,2.33388568]
[1757176673317,4.7064,4284.8,4284.7,2.33388568]
[1757176673519,4.7054,4284.8,4284.7,2.33388568]
[1757176673829,4.7054,4284.8,4284.6,2.33392895]
[1757176674036,5.2512,4284.7,4283.1,2.33472673]
[1757176674200,2.2512,4284.7,4284.3,2.33409517]
[1757176674395,0.2957,4284.4,4284.3,2.33409517]
[1757176674735,0.792,4284.3,4282.8,0.025]
[1757176674923,0.792,4284.1,4283.7,2.33441969]
[1757176675096,0.099,4283.8,4283.7,2.33441969]
[1757176675318,3.0,4283.7,4282.8,0.025]
[1757176675523,2.2192,4283.6,4282.8,0.025]
[1757176675732,4.0152,4284.2,4282.8,2.2866733]
[1757176675936,8.3952,4284.2,4282.9,0.4463]
[1757176676218,4.0152,4284.2,4283.0,2.33481204]
[1757176676440,4.38,4284.1,4284.0,2.33426704]
[1757176676653,4.478,4284.1,4284.0,2.33426704]
[1757176676852,0.099,4284.1,4284.0,2.33426704]
[1757176677364,4.478,4284.1,4284.0,2.33426704]
[1757176677537,0.099,4284.1,4284.0,2.33426704]
[1757176679078,4.477,4284.1,4284.0,2.33426704]
[1757176679460,6.6962,4284.1,4284.0,2.33426704]
[1757176679819,4.477,4284.1,4284.0,2.33426704]
[1757176680019,6.6962,4284.1,4284.0,2.33426704]
[1757176680223,6.9256,4284.1,4284.0,2.33426704]
[1757176680566,6.9256,4284.1,4283.9,2.33427496]
[1757176680767,0.3284,4284.1,4284.0,2.33426704]
[1757176680923,4.7044,4284.1,4284.0,2.33426704]
[1757176681320,2.3182,4284.1,4284.0,2.33426704]
[1757176681520,6.6932,4284.1,4284.0,2.33426704]
[1757176681756,2.3182,4284.1,4284.0,2.33426704]
[1757176681958,6.6932,4284.1,4284.0,2.33426704]
[1757176682345,1.795,4284.2,4284.1,2.33421255]
[1757176682551,6.268,4284.2,4284.1,2.33421255]
[1757176683162,1.894,4284.2,4284.1,2.33421255]
[1757176683487,6.169,4284.2,4284.1,2.33421255]
[1757176683779,1.795,4284.2,4284.1,2.33421255]
[1757176684088,6.168,4284.2,4284.1,2.33421255]
[1757176686349,6.267,4284.2,4284.1,2.33421255]
[1757176686768,1.894,4284.2,4284.1,2.33421255]
[1757176686972,6.265,4284.2,4284.1,2.33421255]
[1757176687979,8.4842,4284.2,4284.1,2.33421255]
[1757176689537,0.792,4284.1,4282.9,2.0886]
[1757176689875,0.1003,4283.0,4282.9,2.33486656]
[1757176690080,8.4585,4283.0,4282.9,2.33486656]
[1757176691177,9.2505,4283.0,4282.7,2.33495731]
[1757176691475,2.1952,4282.9,4282.7,2.33495731]
[1757176691879,2.2968,4282.9,4282.8,2.35992107]
[1757176692065,2.2968,4282.9,4282.8,0.025]
[1757176692282,2.2968,4282.9,4282.8,2.35992107]
[1757176692577,2.2968,4282.9,4282.8,0.025]
[1757176693080,2.2968,4282.9,4282.8,2.35992107]
[1757176693581,2.2968,4282.9,4282.8,0.025]
[1757176693751,6.0888,4282.9,4282.8,0.025]
[1757176693946,6.3156,4282.9,4282.8,0.025]
[1757176694347,6.41554018,4282.9,4282.8,0.025]
[1757176694846,12.26254018,4282.9,4282.8,0.025]
[1757176695953,14.59740674,4282.9,4282.8,0.025]
[1757176696145,12.26254018,4282.9,4282.8,0.025]
[1757176696367,16.62654018,4282.9,4282.8,0.025]
[1757176698380,12.26254018,4282.9,4282.8,0.025]
[1757176698694,10.55074018,4282.9,4282.8,0.025]
[1757176699894,6.18874018,4282.9,4282.8,0.025]
[1757176700100,5.35554018,4282.9,4282.8,0.025]
[1757176705072,3.792,4282.8,4281.7,2.3355197]
[1757176705271,12.32040936,4282.9,4281.7,2.3355197]
[1757176705272,0.792,4282.6,4281.7,2.3355197]
[1757176705494,0.792,4282.4,4281.7,2.3355197]
[1757176705700,0.792,4282.2,4281.7,2.3355197]
[1757176705894,0.792,4282.0,4281.7,2.3355197]
[1757176706094,4.356,4281.9,4281.7,2.3355197]
[1757176706295,4.356,4281.9,4281.6,2.3355667]
[1757176706498,0.792,4281.8,4281.4,2.33566195]
[1757176706812,0.792,4281.6,4281.4,2.78106195]
[1757176706967,0.792,4281.6,4281.5,0.2942]
[1757176707169,5.147,4281.6,4281.5,0.2942]
[1757176707768,5.147,4281.6,4281.5,2.62983003]
[1757176708170,5.147,4281.6,4281.5,3.07523003]
[1757176709002,5.147,4281.6,4281.5,0.7396]
[1757176709896,5.147,4281.6,4281.4,2.33567217]
[1757176710075,5.147,4281.6,4281.5,2.62983003]
[1757176710272,5.147,4281.6,4281.5,3.07523003]
[1757176710589,5.147,4281.6,4281.5,0.7396]
[1757176710799,5.147,4281.6,4281.3,2.33573528]
[1757176711111,5.147,4281.6,4281.4,2.78108411]
[1757176711307,5.147,4281.6,4281.5,0.2942]
[1757176711514,5.147,4281.6,4281.4,2.33568411]
[1757176712612,5.147,4281.6,4281.0,0.4454]
[1757176712613,5.147,4281.6,4281.2,2.33578723]
[1757176712816,0.099,4281.5,4281.1,2.33584676]
[1757176712980,0.792,4281.3,4280.8,0.029]
[1757176713180,0.301,4280.9,4280.8,0.029]
[1757176713500,4.35,4280.9,4280.8,2.36501196]
[1757176716320,5.142,4280.9,4280.8,2.36501196]
[1757176717220,5.142,4280.9,4280.8,0.029]
[1757176717577,5.142,4280.9,4280.8,2.36501196]
[1757176717777,5.142,4280.9,4280.8,0.029]
[1757176718284,1.796,4281.2,4281.1,2.33584826]
[1757176718485,6.934,4281.2,4281.1,5.17984826]
[1757176720417,6.934,4281.2,4281.1,3.07544826]
[1757176720620,6.934,4281.2,4280.8,0.029]
[1757176720831,6.934,4281.2,4280.8,2.80000306]
[1757176721122,6.934,4281.2,4281.0,2.33585618]
[1757176721737,6.934,4281.2,4280.9,2.33595739]
[1757176721920,6.934,4281.2,4281.1,2.33584826]
[1757176722434,6.934,4281.2,4281.1,2.63394826]
[1757176722819,6.934,4281.2,4281.1,2.33584826]
[1757176722990,6.934,4281.2,4281.0,2.33590075]
[1757176723328,6.934,4281.2,4280.9,2.33595739]
[1757176723820,6.934,4281.2,4281.1,2.63394826]
[1757176724007,6.934,4281.2,4281.1,3.06894826]
[1757176724212,6.93,4281.2,4281.1,3.06894826]
[1757176726924,6.93,4281.2,4281.1,2.63394826]
[1757176727129,2.588,4281.2,4281.1,2.63794826]
[1757176727326,2.588,4281.2,4281.1,3.07294826]
[1757176727831,6.926,4281.2,4281.1,5.07084826]
[1757176728713,6.926,4281.2,4281.1,3.07294826]
[1757176728936,2.588,4281.2,4281.1,5.07084826]
[1757176729243,6.926,4281.2,4281.1,5.07084826]
[1757176729410,6.926,4281.2,4281.1,3.07294826]
[1757176731154,0.05375887,4282.1,4281.9,2.33541184]
[1757176731302,0.05375887,4282.1,4282.0,4.96801515]
[1757176731813,0.05375887,4282.1,4282.0,2.23701515]
[1757176731997,4.38775887,4282.1,4282.0,4.96801515]
[1757176733796,0.05375887,4282.1,4282.0,4.96801515]
[1757176734156,4.38675887,4282.1,4282.0,4.96801515]
[1757176734754,0.05375887,4282.1,4282.0,4.96801515]
[1757176734948,0.38268742,4282.4,4282.3,2.3351937]
[1757176735096,4.71468742,4282.4,4282.3,2.3351937]
[1757176735302,4.71468742,4282.4,4282.3,5.0661937]
[1757176736953,0.38268742,4282.4,4282.3,5.0661937]
[1757176737111,4.71368742,4282.4,4282.3,5.0661937]
[1757176737310,1.796,4282.6,4282.5,2.33508464]
[1757176737507,0.026,4282.8,4282.7,2.33497559]
[1757176737725,4.356,4282.8,4282.7,2.63307559]
[1757176737941,0.026,4282.8,4282.7,5.06597559]
[1757176738147,4.356,4282.8,4282.7,5.06597559]
[1757176739949,4.354,4282.8,4282.7,5.06597559]